Cogmind - Beta 16.1 @@@ ROGUE MODE // 2026.02.12 @ 12:56:09 Player: Megaknight51 Result: Self-destructed Performance ------------- Evolutions (5) 2500 Regions Visited (5) 1000 Robots Destroyed (31) 155 Value Destroyed (741) 741 Prototype IDs (30) 600 Alien Tech Used (0) 0 Bonus (194) 194 TOTAL SCORE: 5190 Bonus ------- Registered with UFD 300 Friendly Fire -106 Cogmind --------- Core Integrity 907/1000 Matter 103/300 Energy 340/340 System Corruption 0% Temperature Cool (0) Movement Treading (320) Ox2 Location -5/Factory Parts ------- > --- POWER (2) -------- Particle Reactor > --- PROPULSION (3) --- Improved Treads > --- UTILITY (10) ----- Scrap Suit Large Storage Unit Enhanced Optical Array Improved Terrain Scanner Advanced Terrain Scan Processor Seismic Detector Makeshift Light Armor Plating Improved Hacking Suite A0-MCA's Component Scanner > --- WEAPON (2) ------- Assault Rifle > --- INVENTORY (15) --- Ion Engine Ion Engine Micro Nuclear Core Experimental Signal Interpreter Jamming Amplifier Makeshift System Shield Makeshift System Shield Mapping Drone Bay (3/3) Makeshift Hammer Peak State ------------ > --- POWER ------------ Particle Reactor Particle Reactor > --- PROPULSION ------- Improved Treads > --- UTILITY ---------- Scrap Suit Large Storage Unit Enhanced Optical Array Improved Terrain Scanner Advanced Terrain Scan Processor Seismic Detector Makeshift Light Armor Plating Improved Hacking Suite A0-MCA's Component Scanner > --- WEAPON ----------- Autogun > --- INVENTORY -------- Ion Engine Ion Engine Micro Nuclear Core Experimental Signal Interpreter Jamming Amplifier Makeshift System Shield Makeshift System Shield Mapping Drone Bay Assault Rifle Assault Rifle Makeshift Hammer [Rating: 63] Favorites ----------- Power Ion Engine Engine Ion Engine Power Core Fusion Compressor Reactor Particle Reactor Propulsion Light Treads Treads Light Treads Utility Seismic Detector Device Seismic Detector Storage Large Storage Unit Processor A0-MCA's Component Scanner Hackware Improved Hacking Suite Protection Makeshift Light Armor Plating Weapon Assault Rifle Energy Gun Small Laser Ballistic Gun Assault Rifle Special Weapon Mining Laser Impact Weapon Makeshift Hammer Build | -11 -10 -10 -9 -6 -5 ------- Run | Yrd Mat Sub Scr Fac Fac Slots Evolved 10 | . . . . 8 2 Power 1 | . . . . 1 . Propulsion 1 | . . . . 1 . Utility 8 | . . . . 6 2 Weapon . | . . . . . . Parts Attached 37 | 7 7 5 3 13 2 Power 7 | 1 2 . . 4 . Engine 3 | 1 2 . . . . Core 2 | . . . . 2 . Reactor 2 | . . . . 2 . Propulsion 5 | 2 1 1 1 . . Treads 5 | 2 1 1 1 . . Leg . | . . . . . . Wheel . | . . . . . . Hover . | . . . . . . Flight . | . . . . . . Utility 13 | 1 1 1 2 7 1 Device 4 | . . 1 1 2 . Storage 3 | 1 1 . 1 . . Processor 4 | . . . . 3 1 Hackware 1 | . . . . 1 . Protection 1 | . . . . 1 . Artifact . | . . . . . . Weapon 12 | 3 3 3 . 2 1 Energy Gun 2 | 2 . . . . . Energy Cannon . | . . . . . . Ballistic Gun 8 | 1 3 1 . 2 1 Ballistic Cannon . | . . . . . . Launcher . | . . . . . . Special Weapon 1 | . . 1 . . . Impact Weapon 1 | . . 1 . . . Slashing Weapon . | . . . . . . Piercing Weapon . | . . . . . . Special Melee Weapon . | . . . . . . Unidentified Prototypes . | . . . . . . Parts Lost 8 | . 2 . . 3 3 Power 1 | . . . . . 1 Propulsion 2 | . 1 . . 1 . Utility 1 | . . . . 1 . Weapon 4 | . 1 . . 1 2 Highest Loss Streak 2 | . 2 . . 1 2 To Critical Strikes . | . . . . . . Average Backups 10 | 1 9 9 12 10 10 Power 1 | . . 1 1 1 3 Propulsion . | . . . . . . Utility 5 | . 2 2 6 6 5 Weapon 4 | . 4 5 4 2 2 Tool/Special . | . . . . . . Unused Backups 10 | 1 . . 3 1 5 Power 1 | . . . . . 1 Propulsion 1 | 1 . . . . . Utility 6 | . . . 1 1 4 Weapon 2 | . . . 2 . . Tool/Special . | . . . . . . Average Slot Usage (%) 94 | . 81 99 100 84 75 Engine 11 | . 13 14 14 2 . Reactor 1 | . . . . 10 8 Treads 24 | . 25 28 28 12 5 Device 13 | . . 13 14 19 17 Storage 12 | . 14 14 14 6 5 Processor 2 | . . . . 12 17 Hackware 1 | . . . . 5 5 Ballistic Gun 15 | . 27 15 14 11 7 Special Weapon 1 | . . 5 . . . Impact Weapon 8 | . . 7 14 1 . Peak Build Rating 63 | 6 8 11 21 62 63 Average Rating 20 | 5 6 9 15 54 58 On Entrance 16 | . 6 7 11 17 56 Avg Prop Armor Cover (%) . | . . . . . . Naked Turns . | . . . . . . Heaviest Build 70 | 14 19 21 33 70 69 Greatest Support 43 | 40 40 40 43 43 23 Greatest Overweight (x) 2 | . . . . 2 2 Average Overweight (x) . | . . . . . 2 Largest Inventory Capacity 15 | 8 10 10 15 15 15 Average Capacity 13 | 7 9 10 14 15 15 Most Carried 15 | 3 10 10 15 15 12 Average Carried 11 | 1 9 9 12 10 10 Final Capacity 15 | 8 10 10 15 15 15 Final Carried 15 | 3 10 10 15 13 9 Scrap Suit Usage (%) 18 | . . . . 91 100 Parts Cannibalized 3 | . . . . 2 1 Class Distribution -------------------- 53% | Mutant 35% | Scavenger-Mutant 9% | Derelict-Mutant Dominant Class ---------------- Mutant | -10/Materials Scavenger-Mutant | -10/Subcaves Mutant | -9/Scraptown Scavenger-Mutant | -6/Factory Mutant | -5/Factory Resources | -11 -10 -10 -9 -6 -5 ----------- Run | Yrd Mat Sub Scr Fac Fac Matter Collected 1192 | 300 243 225 33 391 . Remotely . | . . . . . . Salvage Created 1066 | 144 430 65 . 371 56 Parts 75 | 8 29 3 . 35 . Haulers Intercepted 2 | . 2 . . . . Recyclers Shooed 2 | . 2 . . . . Parts Field Recycled . | . . . . . . Retrieved Matter . | . . . . . . Parts Self-Destructed . | . . . . . . Prevented . | . . . . . . Parts Restored . | . . . . . . Kills | -11 -10 -10 -9 -6 -5 ------- Run | Yrd Mat Sub Scr Fac Fac Combat Hostiles Destroyed 22 | . 11 1 . 9 1 Guns 22 | . 11 1 . 9 1 Classes Destroyed 11 | 2 3 2 . 4 . Worker 1 | . . . . 1 . Tunneler 4 | 3 . . . 1 . Hauler 2 | . 2 . . . . Recycler 1 | 1 . . . . . Mechanic 1 | . . . . 1 . Swarmer 11 | . 6 . . 5 . Grunt 6 | . 5 . . . 1 Sentry 1 | . . . . 1 . Programmer 3 | . . . . 3 . Artisan 1 | . . 1 . . . Subdweller 1 | . . 1 . . . Best Kill Streak 5 | 4 4 1 . 5 1 Combat Bots Only 4 | . 4 1 . 4 1 Max Kills in Single Turn 2 | 1 1 1 . 2 1 Gunslinging . | . . . . . . Exploded . | . . . . . . Melee . | . . . . . . Uniques/NPCs Destroyed . | . . . . . . Combat | -11 -10 -10 -9 -6 -5 -------- Run | Yrd Mat Sub Scr Fac Fac Hostile Shots Fired 320 | . 86 6 . 198 30 Missed 99 | . 18 1 . 68 12 Hits 221 | . 68 5 . 130 18 Melee 2 | . . . . 2 . Projectile 219 | . 68 5 . 128 18 Critical Strikes 5 | . 2 . . 2 1 Damage Taken 2599 | . 609 105 . 1548 337 Core 536 | . 130 40 . 273 93 Absorbed by Shields . | . . . . . . Regen/Repaired (Parts) 253 | . . . 224 20 9 Core Remaining (%) 66 | 100 . . 32 67 . Volleys Fired 133 | 11 44 21 . 42 15 Largest 2 | 2 2 2 . 2 2 Hottest 120 | 60 40 120 . 46 43 Shots Fired 251 | 22 88 27 . 84 30 Gun 236 | 22 88 12 . 84 30 Cannon . | . . . . . . Launcher . | . . . . . . Special 15 | . . 15 . . . Kinetic 225 | 11 88 12 . 84 30 Thermal 26 | 11 . 15 . . . Explosive . | . . . . . . Electromagnetic . | . . . . . . Robot Hit Streak 24 | 7 8 4 . 23 24 Robot Miss Streak 4 | 3 4 2 . 3 3 Penetration Max . | . . . . . . Secondary Targets 6 | . 2 . . 4 . Max Gunslinging Chain 1 | . 1 . . 1 . Shots Hit Robots 151 | 14 50 8 . 63 16 Core Hits 58 | 5 19 2 . 27 5 Critical Kills . | . . . . . . Critical Parts Destroyed 1 | . . . . 1 . Critical Strikes 1 | . . . . 1 . Destroy 1 | . . . . 1 . Melee Attacks 7 | . . 7 . . . Impact 7 | . . 7 . . . Slashing . | . . . . . . Piercing . | . . . . . . Sneak Attacks 1 | . . 1 . . . Combat Hostiles . | . . . . . . Follow-up Attacks . | . . . . . . Damage Inflicted 2165 | 165 630 175 . 967 228 Guns 2039 | 161 622 75 . 957 224 Cannons . | . . . . . . Explosions . | . . . . . . Melee 76 | . . 76 . . . Ramming 26 | 4 8 . . 10 4 Kinetic 1951 | 73 622 75 . 957 224 Thermal 112 | 88 . 24 . . . Explosive . | . . . . . . Electromagnetic . | . . . . . . Impact 76 | . . 76 . . . Slashing . | . . . . . . Piercing . | . . . . . . Highest Corruption 2 | . 2 2 . . . Average Corruption 2 | . 2 2 . . . Corruption Purged . | . . . . . . Corruption Blocked . | . . . . . . Effects 17 | . 3 14 . . . Message Errors 7 | . 2 5 . . . Matter Fused 5 | . 1 4 . . . Heat Flow Errors 1 | . . 1 . . . Parts Fused 1 | . . 1 . . . Data Loss (minor) 1 | . . 1 . . . Data Loss (major) 1 | . . 1 . . . Misfires 1 | . . 1 . . . Overload Shots . | . . . . . . Overflow Damage 36 | . . 36 . . . Projectiles . | . . . . . . Explosions . | . . . . . . Melee 36 | . . 36 . . . Knockbacks . | . . . . . . Impact . | . . . . . . Kinetic . | . . . . . . Secondary . | . . . . . . Self-Inflicted Damage . | . . . . . . Shots . | . . . . . . Rammed 8 | 2 3 . . 2 1 Targets Rammed 9 | 2 3 . . 3 1 Kicked . | . . . . . . Crushed 1 | . . . . 1 . Highest Temperature 214 | . . 214 . 78 14 Average Temperature 33 | . . 116 . 26 6 Received Heat Transfer 510 | . 120 . . 219 171 Siege Activations . | . . . . . . Martial Activations . | . . . . . . Shielding Activations . | . . . . . . Robots Disrupted . | . . . . . . Combat Hostiles . | . . . . . . Robots Corrupted 1 | . . 1 . . . Combat Hostiles . | . . . . . . Parts Fried 1 | . . 1 . . . Impact Corruptions 2 | . . 2 . . . Robots Melted . | . . . . . . Combat Hostiles . | . . . . . . Parts Melted . | . . . . . . Heat Transferred 250 | 200 . 50 . . . Parts Sabotaged . | . . . . . . Parts Stolen . | . . . . . . Parts Stripped . | . . . . . . Power Chain Reactions . | . . . . . . Alert | -11 -10 -10 -9 -6 -5 ------- Run | Yrd Mat Sub Scr Fac Fac Maximum Alert Level . | . . . . . . Low Security (%) 100 | 100 100 . . 100 100 Level 1 . | . . . . . . Level 2 . | . . . . . . Level 3 . | . . . . . . Level 4 . | . . . . . . Level 5 . | . . . . . . High Security . | . . . . . . Max Security . | . . . . . . Peak Influence 110 | 10 110 . . 109 27 Initial 27 | . . . . . 27 Average 25 | . 30 . . 28 6 Influence Increases 637 | 20 295 . . 302 20 Destroy 0b10 Robot/C 420 | . 220 . . 180 20 Destroy 0b10 Robot/NC 45 | 20 10 . . 15 . Destroy Leader 84 | . 34 . . 50 . Successful Hack 12 | . . . . 12 . Destroy Structure 1 | . 1 . . . . Lose Combat Pursuer 75 | . 30 . . 45 . Influence Decreases 637 | 20 295 . . 245 77 Entered New Map 30 | . . . . . 30 Time Decay 567 | 20 275 . . 225 47 Lost Part 40 | . 20 . . 20 . Squads Dispatched 4 | . 1 . . 2 1 Investigation 1 | . 1 . . . . Extermination 2 | . . . . 2 . Reinforcement 1 | . . . . . 1 Assault . | . . . . . . Garrison . | . . . . . . Intercept . | . . . . . . Searches Triggered . | . . . . . . Construction Impeded . | . . . . . . Haulers Reinforced 1 | . . . . . 1 Active Scanning Responses . | . . . . . . Cargo Convoy Interrupts . | . . . . . . Stealth | -11 -10 -10 -9 -6 -5 --------- Run | Yrd Mat Sub Scr Fac Fac Distress Signals 2 | . 1 . . 1 . Communications Jammed . | . . . . . . Distress Signals . | . . . . . . Times Spotted 42 | . 18 1 . 19 4 Peak Tracking Total 5 | . 4 1 . 5 3 Tactical Retreats 3 | . 1 . . 2 . Traps | -11 -10 -10 -9 -6 -5 ------- Run | Yrd Mat Sub Scr Fac Fac Traps Triggered 4 | . 3 . . 1 . Indirectly . | . . . . . . Trap Hack Attempts . | . . . . . . Triggered . | . . . . . . Disarmed . | . . . . . . Reprogrammed . | . . . . . . Reused . | . . . . . . Traps Extracted . | . . . . . . Installed . | . . . . . . Triggered . | . . . . . . Machines | -11 -10 -10 -9 -6 -5 ---------- Run | Yrd Mat Sub Scr Fac Fac Machines Disabled . | . . . . . . Max in Single Turn . | . . . . . . Machines Repaired . | . . . . . . Machines Dismantled . | . . . . . . Machines Sabotaged . | . . . . . . Overloaded Fab Kills . | . . . . . . Hacking | -11 -10 -10 -9 -6 -5 --------- Run | Yrd Mat Sub Scr Fac Fac Machines Accessed 11 | . 2 1 5 3 . Terminals 3 | . 2 . . 1 . Fabricators 1 | . . . . 1 . Repair Stations . | . . . . . . Recycling Units 1 | . . . . 1 . Scanalyzers . | . . . . . . Garrison Access . | . . . . . . Total Hacks 28 | . 4 1 15 8 . Successful 19 | . 1 1 15 2 . Failed 9 | . 3 . . 6 . Catastrophic 2 | . 1 . . 1 . Database Lockouts . | . . . . . . Manual 4 | . 4 . . . . Terminals 7 | . 4 . . 3 . Fabricators 4 | . . . . 4 . Repair Stations . | . . . . . . Recycling Units 1 | . . . . 1 . Scanalyzers . | . . . . . . Garrison Access . | . . . . . . Terminal Hacks 18 | . 1 1 15 1 . Record 14 | . . . 14 . . Robot Analysis 1 | . 1 . . . . Prototype ID Bank 1 | . . . . 1 . Proto ID Catalog 2 | . . 1 1 . . Fabricator Hacks 1 | . . . . 1 . Build 1 | . . . . 1 . Repair Station Hacks . | . . . . . . Recycling Unit Hacks . | . . . . . . Scanalyzer . | . . . . . . Garrison Access Hacks . | . . . . . . Unauthorized Hacks . | . . . . . . Terminals . | . . . . . . Fabricators . | . . . . . . Repair Stations . | . . . . . . Recycling Units . | . . . . . . Scanalyzers . | . . . . . . Garrison Access . | . . . . . . Data Cores Recovered . | . . . . . . Used . | . . . . . . Hacking Detections 5 | . 2 . . 3 . Full Trace Events 1 | . 1 . . . . Feedback Events . | . . . . . . Feedback Blocked . | . . . . . . Robot Schematics Acquired . | . . . . . . Robots Built . | . . . . . . Authchips . | . . . . . . Time . | . . . . . . Total Robot Build Rating . | . . . . . . Part Schematics Acquired . | . . . . . . Parts Built 2 | . . . . 2 . Authchips . | . . . . . . Time 128 | . . . . 128 . Total Part Build Rating 16 | . . . . 16 . Part Studies Acquired . | . . . . . . Parts Repaired . | . . . . . . Time . | . . . . . . Parts Recycled . | . . . . . . Recycled Matter . | . . . . . . Retrieved Matter . | . . . . . . Retrieved Components . | . . . . . . Parts Scanalyzed . | . . . . . . Part Schematics Acquired . | . . . . . . Parts Damaged . | . . . . . . Bothacking | -11 -10 -10 -9 -6 -5 ------------ Run | Yrd Mat Sub Scr Fac Fac Used RIF Installer . | . . . . . . Robots Hacked . | . . . . . . Non-combat . | . . . . . . Combat . | . . . . . . Robot Hacks Applied . | . . . . . . Relay Couplers Released . | . . . . . . Fabnet Peak Effective % . | . . . . . . Robots Rewired . | . . . . . . Allies Hacked . | . . . . . . Hacks Repelled . | . . . . . . Allies | -11 -10 -10 -9 -6 -5 -------- Run | Yrd Mat Sub Scr Fac Fac Total Allies . | . . . . . . Largest Group . | . . . . . . Highest-Rated Group . | . . . . . . Highest-Rated Ally . | . . . . . . Initial UFD Resources 25 | . . . . 22 25 Total Orders 18 | . . . 18 . . STAY 1 | . . . 1 . . ROAM 3 | . . . 3 . . FOLLOW 1 | . . . 1 . . EXPLORE 6 | . . . 6 . . RETURN 7 | . . . 7 . . Ally Attacks . | . . . . . . Total Damage . | . . . . . . Kills . | . . . . . . Allies Corrupted . | . . . . . . Allies Melted . | . . . . . . Intel | -11 -10 -10 -9 -6 -5 ------- Run | Yrd Mat Sub Scr Fac Fac Active Infowar (turns) 5980 | . . 1491 2946 1317 226 Optics 1046 | . . . . 820 226 Terrain 1468 | . . . . 1242 226 Seismic 5980 | . . 1491 2946 1317 226 Robot Analysis Total 1 | . 1 . . . . Derelict Logs Recovered 3 | . . 1 2 . . Drone Launches 5 | . . . 5 . . Drone Recoveries 5 | . . . 5 . . Exploration | -11 -10 -10 -9 -6 -5 ------------- Run | Yrd Mat Sub Scr Fac Fac Turns Passed 7853 | 202 900 1499 3709 1317 226 Spaces Moved 3694 | 98 409 724 2011 398 54 Core 4 | 4 . . . . . Treads 3690 | 94 409 724 2011 398 54 Legs . | . . . . . . Wheels . | . . . . . . Hover . | . . . . . . Flight . | . . . . . . Fastest Speed 50 | 50 160 160 160 160 320 Average Speed 169 | 155 160 160 160 226 320 Slowest Speed 320 | 160 160 160 160 320 320 Overloaded Moves . | . . . . . . Propulsion Burnouts . | . . . . . . Robots Hopped . | . . . . . . Potential Cave-ins . | . . . . . . Cave-ins Triggered . | . . . . . . Exploration Rate (%) 35 | 4 58 46 94 9 3 Regions Visited 5 Branch Regions 2 Pre-discovered Areas 2 | . . . 2 . . Known Exits Taken . | . . . . . . Unknown Exits Taken 5 | 1 1 1 1 1 . Scrap Searched 9 | . . 5 4 . . Spaces Dug 1 | . . 1 . . . Terrain Destroyed 1 | . . 1 . . . Melee 1 | . . 1 . . . Projectile . | . . . . . . AOE . | . . . . . . Terrain Rammed . | . . . . . . Walls Destroyed . | . . . . . . Machines Disabled . | . . . . . . Actions | -11 -10 -10 -9 -6 -5 --------- Run | Yrd Mat Sub Scr Fac Fac Total 4997 | 122 563 1001 2504 732 75 Wait 1064 | . 90 238 473 262 1 Move 3689 | 97 408 723 2010 397 54 Hop . | . . . . . . Pick Up 26 | 4 5 3 11 3 . Fast Attach 14 | 6 6 . . 2 . Attach 14 | . 1 1 . 8 4 Detach 4 | . 1 . . 3 . Swap 22 | 1 4 5 4 8 . Drop 15 | 1 1 3 6 4 . Fire 133 | 11 44 21 . 42 15 Melee 7 | . . 7 . . . Ram . | . . . . . . Kick . | . . . . . . Crush 9 | 2 3 . . 3 1 Escape Stasis . | . . . . . . Rewire . | . . . . . . Trap . | . . . . . . Miscellaneous . | . . . . . . Route ------- -11/Scrapyard -10/Materials (discovered 4 exits: [*Mat] / [*Min x2] / *Sub) -10/Subcaves (discovered 2 exits: Mat / *Scr) -9/Scraptown (discovered 2 exits: *Fac x2) -6/Factory -5/Factory History --------- Turn | Location | Event 38 | -11/Scrapyard | Discovered new exit (range 16) 203 | -11/Scrapyard | Entered Materials 270 | -10/Materials | Discovered new exit (range 13) 318 | -10/Materials | Build established: Mutant 700 | -10/Materials | Core integrity fell below 50% 727 | -10/Materials | Discovered new exit (range 14) 734 | -10/Materials | Discovered new exit (range 13) 907 | -10/Materials | Discovered new exit (range 10) 1103 | -10/Materials | Entered Subcaves 1104 | -10/Subcaves | Approached by a straggling Scientist 1105 | -10/Subcaves | Identified exit to Materials 1189 | -10/Subcaves | Build established: Scavenger-Mutant 1704 | -10/Subcaves | Shifting Twisted Machinery released Mak. Hammer 1739 | -10/Subcaves | Scientist uncovered a shortcut to Scraptown 1858 | -10/Subcaves | Visited 4L-MR0's lab 1996 | -10/Subcaves | A swath of the cavern ceiling suddenly collapsed 2341 | -10/Subcaves | Disturbed a concealed Subdweller 2602 | -10/Subcaves | Entered Scraptown 2602 | -9/Scraptown | System corruption cleaned by C-Scrubber 3252 | -9/Scraptown | Build established: Mutant 3289 | -9/Scraptown | Scanned Subdweller tech in exchange for log data 3299 | -9/Scraptown | Learned Factory garrison access intel 3300 | -9/Scraptown | Learned 8 Research zone layouts 3327 | -9/Scraptown | Discovered new exit (range 5) 3404 | -9/Scraptown | Visited Comm Corps 3497 | -9/Scraptown | Visited Cyclists 3550 | -9/Scraptown | Visited CR-KLE's Repair Center 3561 | -9/Scraptown | CR-KLE repaired 5 parts 3590 | -9/Scraptown | Visited Awakened 3665 | -9/Scraptown | Visited Red Mages 3841 | -9/Scraptown | Visited Cave Peace 4135 | -9/Scraptown | Visited UFD Registry 4135 | -9/Scraptown | Registered with UFD as "Pulseninja" 4238 | -9/Scraptown | Entered Cyclist Reading Room 4246 | -9/Scraptown | Learned location of Exiles (-9) 4246 | -9/Scraptown | Learned location of Zion (-6) 4359 | -9/Scraptown | Visited Scrapoid Pod Storage 4398 | -9/Scraptown | Visited Abandonware Association 4419 | -9/Scraptown | Learned abandonware demo "SHUTEYE.EXE" 4423 | -9/Scraptown | Learned abandonware demo "OVRCLOCK.EXE" 4471 | -9/Scraptown | Visited Curators Association 4567 | -9/Scraptown | Delivered Scrap Shield to a Scientist 4734 | -9/Scraptown | Visited Infowarlord's Domain 4751 | -9/Scraptown | Found Exp. Signal Interpreter 4781 | -9/Scraptown | Visited Supply Room 4856 | -9/Scraptown | Visited Cartography Club 4911 | -9/Scraptown | Found Surveybot 17 Chip 5121 | -9/Scraptown | Discovered new exit (range 17) 5344 | -9/Scraptown | Build established: Derelict-Mutant 5883 | -9/Scraptown | Visited A0-MCA Data Center 5899 | -9/Scraptown | Given an A- rating by A0-MCA 5905 | -9/Scraptown | Found A0-MCA's Component Scanner 5938 | -9/Scraptown | Visited Junk Cannon Lab 6002 | -9/Scraptown | Visited Science Guys 6131 | -9/Scraptown | Build established: Mutant 6280 | -9/Scraptown | Found Scrap Suit 6311 | -9/Scraptown | Entered Factory 6311 | -6/Factory | Evolved 8 slots: Power x1, Propulsion x1, Utility x6 6312 | -6/Factory | Loaded intel: 4 garrison access locations 6589 | -6/Factory | Fabricated Particle Reactor (x2) 7452 | -6/Factory | Build established: Scavenger-Mutant 7561 | -6/Factory | Discovered new exit (range 21) 7628 | -6/Factory | Entered another Factory area 7628 | -5/Factory | Evolved 2 slots: Utility x2 7854 | -5/Factory | Self-destructed Last Messages --------------- 07705_ K-01 Serf cleans the Terminal. 07711_ K-01 Serf cleans the Nuclear Reactor. 07726_ K-01 Serf collects debris. 07729_ K-01 Serf cleans the Fabricator. 07729_ ALERT: All DSF locations entering lockdown mode. 07735_ Particle Reactor destroyed. 07742_ K-01 Serf cleans the Nuclear Reactor. 07745_ K-01 Serf collects debris. 07758_ Autogun destroyed. 07761_ A-15 Conveyor calls for reinforcements. 07761_ ALERT: Hostile activity reported, dispatching reinforcements to area. 07788_ K-01 Serf cleans the Nuclear Reactor. 07790_ Critical hit (Burn: +37). 07793_ G-50 Soldier destroyed. 07795_ K-01 Serf collects debris. 07803_ K-01 Serf cleans the Neutrino Reactor. 07803_ K-01 Serf collects debris. 07847_ Slammed into R-10 Processor. 07851_ Assault Rifle destroyed. Map ----- +----------------------------------------------------+ | ?"" # """ """ """ # ????????????????????????? | | # """ """ """ ##?#?#?#??????????????????? | | ?""" # # ? ??????????????????? | | """ + """ """ """ # ????""?????????????????? | | """ # """ """ """ # """?"??????????????????? | | ? # """ """ """ # ?""?""?????????????????? | | # #? ?""????????????????????? | | ###### !! #? ???? ? ????????????????? | | ## !!! "" "" # ?""?""??????????????????? | | ## !!! "F "" # ""?"???????????????????? | | ## """"" # """"???????????????????? | | ## # """""??????????????????? | | ## # ? ???????????????? | | ###########% # ?? ??????????????? | | ########### ###+#####??#??????????????? | | ########### ##?#???????????????? | | ?########## #####??????????????? | | ########### ##??###?#??????????? | | ########### #?? ???????????????? | | ########### R #? ? ? ?#??????????? | | ###################+#####k # ? ????????????? | | ############ # # ??? ?????????????? | | ###?######## # # ? ? ? #??????????? | | ##?######### # # ???????????????? | | ############ + # ? ?? #? ????????? | | ############ #@ # ?? ????????????? | | ########?### # #? ? ???? ????????? | | ?########### # R # ? ???????????????? | | ?########?## # # ?????????????????? | | ?##?#?###### # # ??? ? ?????????? | | ??########## # +?? ???????????????? | | ??????###### # # ? ?? #??????????? | | ?????#####?# # #?? ?????????????? | | ??????????############### u # ? ?? ????????????? | | ????????#??#?? ? ?? ?# t#? ? ? ????????????? | | ??????????????? ? # ##?##??????????????? | | ??????????## ? ? ? # ??? ? ????????????? | | ?????????????? ??? ? ? + ??????????????????? | | ???????????? ?? ?? ? ?# h ?????????????????? | | ???????????????????? ?? ?????????????????? | | ?????????????????? ?????? ????????????????? | | ????????????????????????? ###????????????????? | | ????????????????????????? #??????????????????? | | ????????????????????????? #??????????????????? | | ????????????????????????? #??????????????????? | | ????????????????????????? A???????????????????? | | ????????????????????????? ?????????????????????? | | ?????????????????????????????????????????????????? | | ?????????????????????????????????????????????????? | | ?????????????????????????????????????????????????? | +----------------------------------------------------+ Best States ------------- Heat Dissipation 40 Energy Generation 41 Energy Capacity 580 Matter Stores 300 Matter Capacity 300 Sight Range 22 Terrain Scan Range 16 Terrain Scan Density 1210 Armor Coverage 100 Evasion (%) 40 Recoil Reduction 2 Offensive Hacking 12 Item Schematics ----------------- None Robot Schematics ------------------ None Fabricated ------------ Particle Reactor | x2 | -6/Factory | Preloaded Repaired ---------- Nothing Studied --------- None Alien Tech Used ----------------- None Achievements -------------- None Challenges ------------ None Game ------ Seed ProtonChipDriveblaster Manual? 0 Play Time 00:35:52 Cumulative 61.6 hours Start 2026.02.11 @ 15:14:53 End 2026.02.12 @ 12:56:09 Sessions 3 Manual Loads 0 Difficulty Rogue Special Mode None Game No. 131 Rogue 131 Adventurer 0 Explorer 0 Win Type - Total 0 Types 0/0/0/0/0/0/0/0/0/0 Lore% 38 Gallery% 32 Achievement% 29 Wizard Run 0 Options --------- Layout 0 ASCII 0 Keyboard 1 Movement Arrows Keybinds 0 Fullscreen 1 Font 18/Smallcaps Map View 76x50 Zoom Use 62% Tactical HUD 1 Map Filters NONE Filters NONE Steam 1 RUN: 20a00fca-8222-4e1a-84b4-270c6c6d8781